fUST/lending_fUST_20260104
["ID","MTS","AMOUNT","RATE_DAILY","PERIOD"]
[400415674,1767531408577,930.88,0.000102,2]
[400415675,1767531408601,179.42,0.000102,2]
[400415676,1767531410558,1110.3,0.000104,2]
[400415677,1767531412690,1110.3,0.000106,2]
[400415679,1767531422942,5000.0,0.00010698,2]
[400415680,1767531446446,2599.99,0.00010698,2]
[400415681,1767531446474,2400.01,0.00010698,2]
[400415682,1767531451448,168.23337882,0.0003,120]
[400415683,1767531458384,184.3,6.81e-05,2]
[400415684,1767531458784,276.44,7.119e-05,2]
[400415685,1767531459226,368.59,7.429e-05,2]
[400415686,1767531459664,460.74,7.738e-05,2]
[400415687,1767531460085,552.89,8.048e-05,2]
[400415688,1767531460493,645.04,8.357e-05,2]
[400415689,1767531461395,737.19,8.667e-05,2]
[400415690,1767531461808,829.33,8.977e-05,2]
[400415691,1767531462228,921.48,9.286e-05,2]
[400415692,1767531462343,1000.0,0.00010698,2]
[400415693,1767531462465,168.23337884,0.0003,120]
[400415694,1767531468417,500.0,0.00010697,2]
[400415695,1767531468450,500.0,0.00010697,2]
[400415696,1767531468484,500.0,0.00010697,2]
[400415697,1767531468525,124.0,0.00010697,2]
[400415698,1767531468552,376.0,0.00010697,2]
[400415699,1767531468590,500.0,0.00010697,2]
[400415700,1767531468630,500.0,0.00010697,2]
[400415701,1767531468661,500.0,0.00010697,2]
[400415702,1767531468700,500.0,0.00010697,2]
[400415703,1767531468731,500.0,0.00010697,2]
[400415704,1767531469057,500.0,0.00010697,2]
[400415705,1767531469093,500.0,0.00010697,2]
[400415706,1767531469132,500.0,0.00010697,2]
[400415707,1767531469167,500.0,0.00010697,2]
[400415708,1767531469201,500.0,0.00010697,2]
[400415709,1767531469231,500.0,0.00010697,2]
[400415710,1767531469268,500.0,0.00010697,2]
[400415711,1767531469297,500.0,0.00010697,2]
[400415712,1767531469335,500.0,0.00010697,2]
[400415713,1767531469371,500.0,0.00010697,2]
[400415714,1767531469407,500.0,0.00010697,2]
[400415715,1767531469442,286.68825303,0.00010697,2]
[400415716,1767531469479,500.0,0.00010697,2]
[400415717,1767531469518,500.0,0.00010697,2]
[400415718,1767531469548,337.32174697,0.00010697,2]
[400415719,1767531469572,162.67825303,0.00010697,2]
[400415720,1767531469612,500.0,0.00010697,2]
[400415721,1767531469654,500.0,0.00010697,2]
[400415722,1767531470215,5000.0,0.00010698,2]
[400415724,1767531483073,300.0,0.00010697,2]
[400415725,1767531494085,3537.33174697,0.00010698,2]
[400415726,1767531494111,1462.66825303,0.00010698,2]
[400415728,1767531517870,5000.0,0.00010698,2]
[400415729,1767531532782,156.09,6.588e-05,2]
[400415730,1767531533339,312.18,6.902e-05,2]
[400415731,1767531533647,468.27,7.216e-05,2]
[400415732,1767531534271,624.36,7.529e-05,2]
[400415733,1767531534808,780.45,7.843e-05,2]
[400415734,1767531535315,936.54,8.157e-05,2]
[400415735,1767531535746,259.45174697,8.47e-05,2]
[400415736,1767531535773,833.17825303,8.47e-05,2]
[400415737,1767531536171,1248.72,8.784e-05,2]
[400415738,1767531536632,1404.81,9.098e-05,2]
[400415739,1767531536677,315.50081708,0.0003,120]
[400415740,1767531537047,1560.9,9.412e-05,2]
[400415741,1767531541340,4952.40174697,0.00010698,2]
[400415742,1767531541365,47.59825303,0.00010698,2]
[400415744,1767531543107,300.0,0.00010697,2]
[400415745,1767531564465,5000.0,0.0001059,2]
[400415746,1767531588304,5000.0,0.0001059,2]
[400415747,1767531592833,0.01,0.0001,2]
[400415748,1767531592861,506.13,0.0001,2]
[400415749,1767531594752,506.14,0.000102,2]
[400415750,1767531596723,506.14,0.000104,2]
[400415755,1767531610172,269.66,6.796e-05,2]
[400415756,1767531610586,404.49,7.104e-05,2]
[400415757,1767531611014,539.32,7.413e-05,2]
[400415758,1767531611459,674.16,7.722e-05,2]
[400415759,1767531611864,808.99,8.031e-05,2]
[400415760,1767531612312,943.82,8.34e-05,2]
[400415761,1767531612570,4841.16,0.0001059,2]
[400415762,1767531612597,158.84,0.0001059,2]
[400415763,1767531612721,1078.65,8.649e-05,2]
[400415764,1767531613487,1213.48,8.958e-05,2]
[400415765,1767531613567,1348.31,9.267e-05,2]
[400415766,1767531628901,5000.0,0.0001059,2]
[400415768,1767531636980,1200.73,0.0001059,2]
[400415769,1767531637005,3799.27,0.0001059,2]
[400415770,1767531653809,2549.75556634,0.0001059,2]
[400415772,1767531661952,3650.98443366,0.0001059,2]
[400415773,1767531661977,1349.01556634,0.0001059,2]
[400415777,1767531685750,5000.0,0.0001059,2]
[400415778,1767531686418,310.38,6.43e-05,2]
[400415779,1767531686863,620.76,6.736e-05,2]
[400415780,1767531687325,931.13,7.042e-05,2]
[400415781,1767531687742,1241.51,7.349e-05,2]
[400415782,1767531688141,547.21443366,7.655e-05,2]
[400415783,1767531688169,1004.67556634,7.655e-05,2]
[400415784,1767531688542,1862.27,7.961e-05,2]
[400415785,1767531688930,2172.65,8.267e-05,2]
[400415786,1767531689375,2483.03,8.573e-05,2]
[400415787,1767531689843,2477.38443366,8.88e-05,2]
[400415788,1767531689869,316.01556634,8.88e-05,2]
[400415789,1767531690270,3103.78,9.186e-05,2]
[400415795,1767531709070,5000.0,0.0001055,2]
[400415798,1767531763389,191.21,6.312e-05,2]
[400415799,1767531764137,382.41,6.612e-05,2]
[400415800,1767531764545,573.62,6.913e-05,2]
[400415801,1767531764974,764.82,7.214e-05,2]
[400415802,1767531765384,956.03,7.514e-05,2]
[400415803,1767531765823,1147.23,7.815e-05,2]
[400415804,1767531766221,1338.44,8.115e-05,2]
[400415805,1767531766629,1529.65,8.416e-05,2]
[400415806,1767531767064,1720.85,8.716e-05,2]
[400415807,1767531767677,1395.75,9.017e-05,2]
[400415808,1767531767703,516.31,9.017e-05,2]
[400415809,1767531773607,253.33,0.0001,2]
[400415812,1767531840501,226.66,6.691e-05,2]
[400415813,1767531841118,339.99,6.995e-05,2]
[400415815,1767531841367,453.32,7.299e-05,2]
[400415816,1767531841775,566.65,7.603e-05,2]
[400415817,1767531842183,679.98,7.907e-05,2]
[400415818,1767531842761,793.31,8.211e-05,2]
[400415819,1767531843207,906.64,8.515e-05,2]
[400415820,1767531844089,1019.96,8.82e-05,2]
[400415821,1767531844501,1133.29,9.124e-05,2]
[400415828,1767531914894,200.0,0.0001003,6]
[400415829,1767531915817,245.91,6.725e-05,2]
[400415830,1767531916233,368.87,7.031e-05,2]
[400415831,1767531916660,491.82,7.337e-05,2]
[400415832,1767531917161,614.78,7.642e-05,2]
[400415833,1767531917580,737.73,7.948e-05,2]
[400415834,1767531918048,860.69,8.254e-05,2]
[400415835,1767531918540,360.41,8.559e-05,2]
[400415836,1767531918567,623.23,8.559e-05,2]
[400415837,1767531918884,1106.6,8.865e-05,2]
[400415838,1767531919420,1229.55,9.171e-05,2]
[400415839,1767531940174,5000.0,0.00010081,2]
[400415840,1767531953402,265.39,0.0001,2]
[400415841,1767531964780,1775.24,0.00010081,2]
[400415842,1767531964807,3224.76,0.00010081,2]
[400415843,1767531988751,2297.18512612,0.00010081,2]
[400415844,1767531990494,531.6070502,9.697e-05,2]
[400415845,1767531991532,185.74,6.183e-05,2]
[400415846,1767531992016,371.48,6.477e-05,2]
[400415847,1767531992507,557.23,6.771e-05,2]
[400415848,1767531992939,742.97,7.066e-05,2]
[400415849,1767531993337,928.71,7.36e-05,2]
[400415850,1767531993758,1114.45,7.655e-05,2]
[400415851,1767531994489,45.87782368,7.949e-05,2]
[400415852,1767531994515,1254.32217632,7.949e-05,2]
[400415853,1767531994600,1485.94,8.243e-05,2]
[400415854,1767531995009,1671.68,8.538e-05,2]
[400415855,1767531995462,1857.42,8.832e-05,2]
[400415856,1767532013285,3730.64782368,0.00010081,2]
[400415857,1767532013317,1269.35217632,0.00010081,2]
[400415862,1767532069134,181.65,6.259e-05,2]
[400415863,1767532069625,363.3,6.557e-05,2]
[400415864,1767532070043,544.96,6.855e-05,2]
[400415865,1767532070463,726.61,7.153e-05,2]
[400415866,1767532070867,908.26,7.451e-05,2]
[400415867,1767532071281,1089.91,7.749e-05,2]
[400415868,1767532071666,1271.57,8.047e-05,2]
[400415869,1767532072094,1453.22,8.345e-05,2]
[400415870,1767532072539,1634.87,8.643e-05,2]
[400415871,1767532072954,556.30782368,8.941e-05,2]
[400415872,1767532072980,1260.21217632,8.941e-05,2]
[400415873,1767532080044,213.0,8.492e-05,2]
[400415874,1767532083262,5000.0,0.00010081,2]
[400415875,1767532086172,-200.0,0.00010151,2]
[400415876,1767532086195,-192.3009956,0.000102,2]
[400415877,1767532088191,-73.0890044,0.000102,2]
[400415878,1767532088215,-157.17890079,0.000103,2]
[400415880,1767532116789,-476.8784108,0.00010197,2]
[400415881,1767532120432,-184.61968079,0.00010197,2]
[400415882,1767532122096,-350.95004616,0.00010197,2]
[400415883,1767532124014,-242.49783502,0.00010197,2]
[400415884,1767532126485,-273.89332638,0.00010197,2]
[400415885,1767532132267,177.02,0.0001,2]
[400415887,1767532145662,160.61,6.508e-05,2]
[400415888,1767532146138,240.91,6.804e-05,2]
[400415889,1767532146541,321.22,7.1e-05,2]
[400415890,1767532146965,401.52,7.395e-05,2]
[400415891,1767532147857,481.83,7.691e-05,2]
[400415892,1767532148336,562.13,7.987e-05,2]
[400415893,1767532148893,642.43,8.283e-05,2]
[400415894,1767532149320,539.12782368,8.579e-05,2]
[400415895,1767532149345,183.61217632,8.579e-05,2]
[400415896,1767532149783,803.04,8.875e-05,2]
[400415899,1767532182050,597.7720854,9.617e-05,2]
[400415913,1767532221683,150.68,9.288e-05,2]
[400415914,1767532222365,175.79,9.645e-05,2]
[400415915,1767532222768,200.91,0.00010002,2]
[400415920,1767532232108,-1045.0,0.00010196,2]
[400415921,1767532232118,-95.38279329,0.00010197,2]
[400415926,1767532236323,-215.11810936,0.00010197,2]
[400415927,1767532237908,-480.70212941,0.00010197,2]
[400415933,1767532238219,-1454.92119538,0.00010197,2]
[400415934,1767532239438,-273.4815141,0.00010197,2]
[400416070,1767532241447,-321.81635649,0.00010197,2]
[400416117,1767532243532,-341.92706528,0.00010197,2]
[400416125,1767532244953,-287.81153754,0.00010197,2]
[400416126,1767532244964,-563.0,0.00010197,2]
[400416127,1767532244975,-177.02,0.000102,2]
[400416128,1767532244986,-194.38395579,0.000103,2]
[400416129,1767532244996,-226.02,0.00010359,2]
[400416130,1767532245007,-177.02,0.000104,2]
[400416131,1767532245017,-10315.6391987,0.00010597,2]
[400416132,1767532245030,-596.16442264,0.00010597,2]
[400416133,1767532245042,-63338.93020346,0.00010597,2]
[400416134,1767532245055,-1313.0,0.00010597,2]
[400416141,1767532248091,-2281.28905335,0.00010597,2]
[400416167,1767532289854,169.81,7.066e-05,2]
[400416168,1767532290260,212.26,7.361e-05,2]
[400416169,1767532290686,254.72,7.655e-05,2]
[400416170,1767532291090,297.17,7.95e-05,2]
[400416171,1767532291516,339.62,8.244e-05,2]
[400416172,1767532291958,382.07,8.539e-05,2]
[400416173,1767532292407,424.53,8.833e-05,2]
[400416178,1767532316218,177.19,0.0001,2]
[400416180,1767532359647,213.55,7.106e-05,2]
[400416181,1767532360085,284.73,7.415e-05,2]
[400416182,1767532360491,355.91,7.724e-05,2]
[400416183,1767532360925,427.09,8.033e-05,2]
[400416194,1767532361335,498.27,8.342e-05,2]
[400416195,1767532361840,569.45,8.651e-05,2]
[400416196,1767532362368,640.64,8.96e-05,2]
[400416197,1767532362781,711.82,9.269e-05,2]
[400416225,1767532435518,157.96,8.928e-05,2]
[400416226,1767532435961,189.56,9.285e-05,2]
[400416227,1767532436404,221.15,9.642e-05,2]
[400416228,1767532436886,252.74,9.999e-05,2]
[400416229,1767532438642,-177.19,0.000102,2]
[400416230,1767532438674,-166.66666668,0.000102,2]
[400416231,1767532438705,-166.66666666,0.00010295,2]
[400416232,1767532438736,-358.91661529,0.000103,2]
[400416233,1767532438767,-284.34,0.00010357,2]
[400416234,1767532438796,-166.66666666,0.0001039,2]
[400416235,1767532438833,-177.19,0.000104,2]
[400416236,1767532438863,-1200.0,0.00010489,2]
[400416237,1767532438894,-500.0,0.0001049,2]
[400416238,1767532438926,-500.0,0.0001049,2]
[400416239,1767532438956,-500.0,0.0001049,2]
[400416240,1767532438988,-500.0,0.0001049,2]
[400416241,1767532439020,-104.73676942,0.0001049,2]
[400416242,1767532439268,-395.26323058,0.0001049,2]
[400416243,1767532439301,-500.0,0.0001049,2]
[400416244,1767532439332,-500.0,0.0001049,2]
[400416245,1767532439364,-500.0,0.0001049,2]
[400416246,1767532439397,-500.0,0.0001049,2]
[400416247,1767532439428,-500.0,0.0001049,2]
[400416248,1767532439459,-500.0,0.0001049,2]
[400416249,1767532439490,-500.0,0.0001049,2]
[400416250,1767532439522,-473.18443475,0.0001049,2]
[400416251,1767532439555,-500.0,0.0001049,2]
[400416252,1767532439800,-500.0,0.0001049,2]
[400416253,1767532439836,-500.0,0.0001049,2]
[400416254,1767532440002,-500.0,0.0001049,2]
[400416255,1767532440045,-500.0,0.0001049,2]
[400416256,1767532440078,-500.0,0.0001049,2]
[400416257,1767532440110,-500.0,0.0001049,2]
[400416258,1767532440141,-500.0,0.0001049,2]
[400416259,1767532440174,-500.0,0.0001049,2]
[400416260,1767532440209,-500.0,0.0001049,2]
[400416261,1767532440242,-500.0,0.0001049,2]
[400416262,1767532440332,-500.0,0.0001049,2]
[400416263,1767532440364,-500.0,0.0001049,2]
[400416264,1767532440398,-500.0,0.0001049,2]
[400416265,1767532440431,-500.0,0.0001049,2]
[400416266,1767532440463,-395.18246986,0.0001049,2]
[400416267,1767532440494,-500.0,0.0001049,2]
[400416268,1767532440524,-500.0,0.0001049,2]
[400416269,1767532440556,-500.0,0.0001049,2]
[400416270,1767532440587,-500.0,0.0001049,2]
[400416271,1767532440618,-500.0,0.0001049,2]
[400416272,1767532440702,-548.73524589,0.0001049,2]
[400416273,1767532440733,-500.0,0.0001049,2]
[400416274,1767532440763,-500.0,0.0001049,2]
[400416276,1767532442117,-7857.13699665,0.0001049,2]
[400416277,1767532442138,-10000.01,0.0001049,2]
[400416278,1767532442167,-10000.01,0.0001049,2]
[400416279,1767532442193,-10000.01,0.0001049,2]
[400416280,1767532447918,-300.0,0.00010489,2]
[400416281,1767532447961,-9400.01,0.0001049,2]
[400416282,1767532448157,-2742.82300335,0.0001049,2]
[400416283,1767532448227,-4514.3639933,0.00010491,2]
[400416284,1767532448243,-10000.01,0.00010491,2]
[400416285,1767532448303,-2032.75820387,0.00010491,2]
[400416286,1767532448330,-5934.49359226,0.00010491,2]
[400416287,1767532449690,2303.4,0.00010384,2]
[400416296,1767532506127,-165.09668745,0.00010384,2]
[400416301,1767532506762,152.43,9.219e-05,2]
[400416303,1767532507228,174.21,9.56e-05,2]
[400416305,1767532507646,195.99,9.902e-05,2]
[400416311,1767532509666,-217.76,0.00010243,2]
[400416312,1767532509691,-120.00532773,0.00010384,2]
[400416340,1767532513517,-311.46308135,0.00010384,2]
[400416341,1767532515088,-500.0,0.00010384,2]
[400416342,1767532515964,6715.1,0.00030137,120]
[400416346,1767532519197,-306.01770426,0.00010384,2]
[400416347,1767532522804,-196.47000003,0.00010384,2]
[400416348,1767532525154,-339.36583057,0.00010384,2]
[400416350,1767532528448,-305.04532544,0.00010384,2]
[400416351,1767532530955,-300.0,0.00010384,2]
[400416352,1767532534564,-153.13604317,0.00010384,2]
[400416353,1767532534590,-27.86395683,0.00010536,2]
[400416402,1767532708582,4737.0,0.00030137,120]
[400416409,1767532745989,9477.38,9.596e-05,2]
[400416410,1767532746013,522.62,9.596e-05,2]
[400416418,1767532803189,217.1344286,9.595e-05,2]
[400416463,1767532933942,5000.0,9.996e-05,2]
[400416472,1767532971098,-153.07,0.00010077,2]
[400416473,1767532972729,-3.44124134,0.00010077,2]
[400416474,1767532972753,-191.55875866,0.0001018,2]
[400416475,1767532975435,-167.06774744,0.0001018,2]
[400416476,1767532975457,-130.03650035,0.00010284,2]
[400416478,1767532977142,-176.27397514,0.00010284,2]
[400416479,1767532978676,-153.07,0.00010284,2]
[400416481,1767533001241,-153.07,0.00010181,2]
[400416482,1767533001264,-38.73474169,0.00010284,2]
[400416483,1767533003187,-169.32352975,0.00010284,2]
[400416484,1767533004878,-183.5603008,0.00010284,2]
[400416485,1767533006924,-169.32352975,0.00010181,2]
[400416486,1767533006947,-91.2296505,0.00010284,2]
[400416487,1767533009507,-67.94661384,0.00010284,2]
[400416488,1767533009530,-313.16377601,0.00010326,2]
[400416489,1767533011637,-251.83622399,0.00010326,2]
[400416490,1767533011659,-77.48993926,0.00010509,2]
[400416491,1767533014325,-130.48949081,0.00010509,2]
[400416492,1767533014347,-169.51050919,0.00010536,2]
[400416495,1767533046150,-247.59411421,0.0001043,2]
[400416500,1767533070299,1227.4690248,9.672e-05,2]
[400416501,1767533071136,-205.14083363,0.00010326,2]
[400416507,1767533166177,-42.45328058,0.00010326,2]
[400416508,1767533166201,-184.56677848,0.00010335,2]
[400416509,1767533166226,-75.59502503,0.0001043,2]
[400416511,1767533196167,-165.46191991,0.00010326,2]
[400416512,1767533197598,-342.29399781,0.00010326,2]
[400416513,1767533197625,-0.99092647,0.0001043,2]
[400416515,1767533211125,-223.41335437,0.00010326,2]
[400416524,1767533256183,-285.33348982,0.00010326,2]
[400416525,1767533256208,-128.67537515,0.00010481,2]
[400416526,1767533258340,-393.89572035,0.00010481,2]
[400416535,1767533287774,-300.0,0.00010376,2]
[400416536,1767533289352,-245.72666961,0.00010376,2]
[400416537,1767533290970,-300.08689002,0.00010376,2]
[400416539,1767533293023,-196.84292458,0.0001,2]
[400416541,1767533294425,-310.90151609,0.0001,2]
[400416542,1767533295787,-293.98603582,0.0001,2]
[400416544,1767533297238,-187.13836179,0.0001,2]
[400416548,1767533298643,-389.26648569,0.0001,2]
[400416549,1767533301647,-376.74613756,0.0001,2]
[400416550,1767533304344,-200.12659503,0.0001,2]
[400416551,1767533306704,160.11,7.603e-05,2]
[400416553,1767533306918,1367.0704362,9.999e-05,2]
[400416554,1767533306964,-159.60852648,0.0001,2]
[400416555,1767533306987,-50.24968427,0.00010376,2]
[400416556,1767533307604,192.13,7.907e-05,2]
[400416557,1767533308075,224.15,8.211e-05,2]
[400416558,1767533308515,256.17,8.515e-05,2]
[400416560,1767533308947,288.19,8.819e-05,2]
[400416562,1767533309370,320.21,9.123e-05,2]
[400416565,1767533330495,409.98480578,9.999e-05,2]
[400416566,1767533332240,-304.52546659,0.0001,2]
[400416567,1767533333737,-284.60954744,0.0001,2]
[400416569,1767533335296,-489.98140847,0.0001,2]
[400416570,1767533336873,-286.83516312,0.0001,2]
[400416571,1767533342495,-436.9597357,0.0001,2]
[400416573,1767533345154,-238.88394758,0.0001,2]
[400416574,1767533347725,-335.56525831,0.0001,2]
[400416575,1767533349491,-271.0,0.0001,2]
[400416576,1767533352162,-203.63,0.0001,2]
[400416578,1767533354722,1802.91132132,9.999e-05,2]
[400416579,1767533356299,-155.11869083,0.0001,2]
[400416580,1767533356320,-66.2837583,0.0001,2]
[400416581,1767533357745,-200.48755087,0.0001,2]
[400416593,1767533376631,162.02,7.696e-05,2]
[400416594,1767533377101,194.42,8.003e-05,2]
[400416595,1767533377533,226.82,8.311e-05,2]
[400416596,1767533377976,259.23,8.619e-05,2]
[400416597,1767533378403,291.63,8.927e-05,2]
[400416598,1767533378841,324.03,9.235e-05,2]
[400416606,1767533421151,-264.74591873,0.0001,2]
[400416627,1767533432427,-2386.64746998,0.0001,2]
[400416628,1767533432437,-560.0,0.0001,2]
[400416629,1767533432447,-207.15357246,0.00010337,2]
[400416630,1767533432457,-135.25469579,0.00010376,2]
[400416631,1767533432467,-351.45397598,0.00010429,2]
[400416632,1767533432476,-277.4289045,0.00010481,2]
[400416633,1767533432486,-500.0,0.00010494,2]
[400416634,1767533432495,-500.0,0.00010494,2]
[400416635,1767533432504,-200.89388402,0.00010494,2]
[400416636,1767533432608,-500.0,0.00010494,2]
[400416637,1767533432639,-500.0,0.00010494,2]
[400416638,1767533432649,-500.0,0.00010494,2]
[400416639,1767533432659,-500.0,0.00010494,2]
[400416640,1767533432668,-500.0,0.00010494,2]
[400416641,1767533432678,-629.79384104,0.00010494,2]
[400416642,1767533432687,-500.0,0.00010494,2]
[400416643,1767533432696,-300.0,0.00010494,2]
[400416644,1767533432706,-300.0,0.00010494,2]
[400416645,1767533432715,-1200.0,0.00010494,2]
[400416646,1767533432725,-25752.24820565,0.00010495,2]
[400416647,1767533432734,-500.0,0.00010495,2]
[400416648,1767533432743,-500.0,0.00010495,2]
[400416649,1767533432752,-188.89472752,0.00010495,2]
[400416650,1767533432762,-500.0,0.00010495,2]
[400416651,1767533432771,-500.0,0.00010495,2]
[400416652,1767533432780,-500.0,0.00010495,2]
[400416653,1767533432790,-500.0,0.00010495,2]
[400416654,1767533432799,-500.0,0.00010495,2]
[400416655,1767533432809,-500.0,0.00010495,2]
[400416656,1767533432819,-500.0,0.00010495,2]
[400416657,1767533432828,-500.0,0.00010495,2]
[400416658,1767533432837,-500.0,0.00010495,2]
[400416659,1767533432846,-500.0,0.00010495,2]
[400416660,1767533432855,-500.0,0.00010495,2]
[400416661,1767533432865,-212.30762175,0.00010495,2]
[400416662,1767533432874,-500.0,0.00010495,2]
[400416663,1767533432883,-500.0,0.00010495,2]
[400416664,1767533432892,-1200.0,0.00010495,2]
[400416665,1767533432902,-64037.8877202,0.00010496,2]
[400416673,1767533438457,-1197.57370402,0.00010496,2]
[400416674,1767533438514,-27988.2416234,0.00010496,2]
[400416793,1767533441762,-3e-08,0.00010391,2]
[400416795,1767533441774,-2447.52709359,0.00010391,2]
[400416797,1767533441783,-25707.64316591,0.00010496,2]
[400417026,1767533445143,-8910.51487676,0.00010496,2]
[400417027,1767533445155,-2718.12263009,0.00010496,2]
[400417048,1767533447970,152.56554803,9.054e-05,2]
[400417055,1767533471672,-1165.50347543,0.00010391,2]
[400417056,1767533471705,-300.0,0.00010495,2]
[400417073,1767533481670,-481.21227147,0.00010496,2]
[400417074,1767533484254,-273.78408127,0.00010496,2]
[400417076,1767533493920,4102.58483612,0.00010496,2]
[400417077,1767533500063,207.44695063,9.9e-05,2]
[400417078,1767533503509,153.108,0.00010286,2]
[400417082,1767533505994,400.4819955,0.00010494,2]
[400417083,1767533506033,163.68715942,0.00010494,2]
[400417085,1767533506150,500.0,0.00010494,2]
[400417086,1767533506467,500.0,0.00010494,2]
[400417088,1767533506867,500.0,0.00010494,2]
[400417091,1767533507198,500.0,0.00010494,2]
[400417094,1767533507561,41.69410747,0.00010494,2]
[400417095,1767533507589,458.30589253,0.00010494,2]
[400417097,1767533507892,500.0,0.00010494,2]
[400417111,1767533508277,500.0,0.00010494,2]
[400417113,1767533508495,500.0,0.00010494,2]
[400417118,1767533508650,500.0,0.00010494,2]
[400417120,1767533508682,500.0,0.00010494,2]
[400417122,1767533508718,500.0,0.00010494,2]
[400417124,1767533508749,500.0,0.00010494,2]
[400417126,1767533508780,205.12970914,0.00010494,2]
[400417128,1767533508811,500.0,0.00010494,2]
[400417130,1767533508842,500.0,0.00010494,2]
[400417135,1767533509093,500.0,0.00010494,2]
[400417136,1767533509125,462.22003481,0.00010494,2]
[400417137,1767533509156,500.0,0.00010494,2]
[400417138,1767533509196,500.0,0.00010494,2]
[400417139,1767533509235,500.0,0.00010494,2]
[400417140,1767533513515,175.64,7.793e-05,2]
[400417141,1767533513917,210.76,8.105e-05,2]
[400417142,1767533514321,245.89,8.416e-05,2]
[400417143,1767533514797,281.02,8.728e-05,2]
[400417144,1767533515326,316.15,9.04e-05,2]
[400417145,1767533515751,351.27,9.352e-05,2]
[400417147,1767533520168,500.0,0.00010494,2]
[400417148,1767533520209,293.62436352,0.00010494,2]
[400417149,1767533520237,206.37563648,0.00010494,2]
[400417150,1767533520275,500.0,0.00010495,2]
[400417151,1767533520310,500.0,0.00010494,2]
[400417152,1767533520358,500.0,0.00010494,2]
[400417153,1767533520392,500.0,0.00010494,2]
[400417154,1767533520424,500.0,0.00010494,2]
[400417155,1767533520457,584.90522341,0.00010494,2]
[400417156,1767533520491,500.0,0.00010494,2]
[400417157,1767533520543,500.0,0.00010494,2]
[400417158,1767533520594,500.0,0.00010495,2]
[400417159,1767533520636,500.0,0.00010494,2]
[400417160,1767533520685,500.0,0.00010495,2]
[400417161,1767533520721,177.56154022,0.00010495,2]
[400417162,1767533522386,300.0,0.00010495,2]
[400417177,1767533550514,500.0,0.00010494,2]
[400417178,1767533550593,500.0,0.00010494,2]
[400417179,1767533550799,500.0,0.00010494,2]
[400417180,1767533550837,500.0,0.00010494,2]
[400417181,1767533550874,500.0,0.00010494,2]
[400417182,1767533550908,500.0,0.00010494,2]
[400417183,1767533550940,500.0,0.00010494,2]
[400417184,1767533550976,231.16759989,0.00010494,2]
[400417185,1767533551002,268.83240011,0.00010494,2]
[400417186,1767533551079,500.0,0.00010494,2]
[400417187,1767533551117,500.0,0.00010494,2]
[400417188,1767533551163,614.47650505,0.00010494,2]
[400417189,1767533551196,500.0,0.00010494,2]
[400417190,1767533566683,155.63,0.0001,2]
[400417191,1767533568950,155.63,0.000102,2]
[400417194,1767533582475,158.26,7.542e-05,2]
[400417195,1767533582721,197.82,7.856e-05,2]
[400417196,1767533582758,300.0,0.00010495,2]
[400417197,1767533583160,237.38,8.17e-05,2]